Cogmind - Beta 17 @@@ ROGUE MODE // 2026.07.03 @ 22:51:32 Player: Scarlet Result: Destroyed by G-47 Trooper with Particle Gun Performance ------------- Evolutions (0) 0 Regions Visited (1) 200 Robots Destroyed (15) 75 Value Destroyed (230) 230 Prototype IDs (0) 0 Alien Tech Used (0) 0 Bonus (0) 0 TOTAL SCORE: 505 Bonus ------- None Cogmind --------- Core Integrity 0/250 Matter 253/300 Energy 275/275 System Corruption 0% Temperature Cool (9) Movement Rolling (100) Location -10/Materials Parts ------- > --- POWER (1) -------- Light Ion Engine > --- PROPULSION (2) --- Compact Wheel > --- UTILITY (2) ------ Medium Battery Weapon Shielding > --- WEAPON (2) ------- Light Assault Rifle Grenade Launcher > --- INVENTORY (5) ---- Flight Unit Medium Matter Pod (51) EM Pulse Gun Light Assault Rifle Peak State ------------ > --- POWER ------------ Light Ion Engine > --- PROPULSION ------- Aluminum Leg Aluminum Leg > --- UTILITY ---------- Medium Matter Pod Weapon Shielding > --- WEAPON ----------- EM Pulse Gun Light Assault Rifle > --- INVENTORY -------- Hover Unit Flight Unit Medium Laser Light Assault Rifle Grenade Launcher [Rating: 7] Favorites ----------- Power Light Ion Engine Engine Light Ion Engine Propulsion Aluminum Leg Leg Aluminum Leg Wheel Compact Wheel Utility Weapon Shielding Storage Medium Battery Protection Weapon Shielding Weapon Light Assault Rifle Energy Gun EM Pulse Gun Ballistic Gun Light Assault Rifle Launcher Grenade Launcher Build | -11 -10 ------- Run | Yrd Mat Slots Evolved . | . . Power . | . . Propulsion . | . . Utility . | . . Weapon . | . . Parts Attached 14 | 6 8 Power 2 | 1 1 Engine 2 | 1 1 Core . | . . Reactor . | . . Propulsion 4 | 2 2 Treads . | . . Leg 2 | 2 . Wheel 2 | . 2 Hover . | . . Flight . | . . Utility 4 | 1 3 Device . | . . Storage 3 | 1 2 Processor . | . . Hackware . | . . Protection 1 | . 1 Artifact . | . . Weapon 4 | 2 2 Energy Gun 1 | . 1 Energy Cannon . | . . Ballistic Gun 2 | 2 . Ballistic Cannon . | . . Launcher 1 | . 1 Special Weapon . | . . Impact Weapon . | . . Slashing Weapon . | . . Piercing Weapon . | . . Special Melee Weapon . | . . Unidentified Prototypes . | . . Parts Lost 1 | . 1 Power . | . . Propulsion 1 | . 1 Utility . | . . Weapon . | . . Highest Loss Streak 1 | . 1 To Critical Strikes . | . . Average Backups 3 | 2 4 Power . | . . Propulsion 1 | 1 1 Utility . | . . Weapon 1 | . 2 Tool/Special . | . . Unused Backups 5 | . 5 Power . | . . Propulsion 4 | . 4 Utility . | . . Weapon 1 | . 1 Tool/Special . | . . Average Slot Usage (%) 94 | . 94 Engine 14 | . 14 Leg 22 | . 22 Wheel 4 | . 4 Storage 14 | . 14 Protection 9 | . 9 Energy Gun 2 | . 2 Ballistic Gun 14 | . 14 Launcher 10 | . 10 Peak Build Rating 7 | 6 7 Average Rating 6 | 4 6 On Entrance 3 | . 6 Avg Prop Armor Cover (%) 10 | . 10 Naked Turns . | . . Heaviest Build 88 | 7 88 Greatest Support 32 | 20 32 Greatest Overweight (x) 4 | . 4 Average Overweight (x) . | . . Largest Inventory Capacity 25 | 5 25 Average Capacity 5 | 5 5 Most Carried 5 | 5 5 Average Carried 3 | 2 4 Final Capacity 5 | 5 5 Final Carried 4 | 3 4 Class Distribution -------------------- 100% | Mutant Dominant Class ---------------- Mutant | -10/Materials Resources | -11 -10 ----------- Run | Yrd Mat Matter Collected 517 | 331 186 Remotely . | . . Salvage Created 332 | 48 284 Parts 24 | 3 21 Haulers Intercepted . | . . Recyclers Shooed 5 | . 5 Parts Field Recycled . | . . Retrieved Matter . | . . Parts Self-Destructed . | . . Prevented . | . . Parts Restored . | . . Kills | -11 -10 ------- Run | Yrd Mat Combat Hostiles Destroyed 7 | 1 6 Guns 4 | 1 3 AOE 3 | . 3 Classes Destroyed 6 | 2 4 Worker 3 | 1 2 Tunneler 1 | . 1 Recycler 2 | . 2 Watcher 2 | . 2 Swarmer 3 | . 3 Grunt 4 | 1 3 Best Kill Streak 5 | 1 5 Combat Bots Only 4 | 1 4 Max Kills in Single Turn 1 | 1 1 Gunslinging . | . . Exploded 1 | . 1 Melee . | . . Uniques/NPCs Destroyed . | . . Combat | -11 -10 -------- Run | Yrd Mat Hostile Shots Fired 67 | 9 58 Missed 18 | 2 16 Hits 49 | 7 42 Projectile 49 | 7 42 Damage Taken 601 | 75 526 Core 255 | 43 212 Absorbed by Shields . | . . Redirected to Shielding 34 | . 34 Core Remaining (%) 82 | 82 . Volleys Fired 64 | 7 57 Largest 2 | 2 2 Hottest 60 | 40 60 Shots Fired 77 | 14 63 Gun 69 | 14 55 Cannon . | . . Launcher 8 | . 8 Special . | . . Kinetic 63 | 14 49 Thermal . | . . Explosive 8 | . 8 Electromagnetic 6 | . 6 Robot Hit Streak 9 | 9 6 Robot Miss Streak 4 | 1 4 Penetration Max . | . . Secondary Targets . | . . Shots Hit Robots 42 | 11 31 Core Hits 29 | 3 26 Critical Kills . | . . Critical Parts Destroyed . | . . Critical Strikes . | . . Melee Attacks . | . . Impact . | . . Slashing . | . . Piercing . | . . Sneak Attacks . | . . Combat Hostiles . | . . Follow-up Attacks . | . . Damage Inflicted 852 | 93 759 Guns 346 | 91 255 Cannons . | . . Explosions 502 | . 502 Melee . | . . Ramming 4 | 2 2 Kinetic 321 | 91 230 Thermal . | . . Explosive 502 | . 502 Electromagnetic 25 | . 25 Impact . | . . Slashing . | . . Piercing . | . . Highest Corruption . | . . Average Corruption . | . . Corruption Purged . | . . Corruption Blocked . | . . Overload Shots . | . . Overflow Damage 27 | . 27 Projectiles . | . . Explosions 27 | . 27 Melee . | . . Knockbacks . | . . Impact . | . . Kinetic . | . . Secondary . | . . Self-Inflicted Damage 76 | . 76 Shots 2 | . 2 Rammed 1 | . 1 Targets Rammed 5 | 2 3 Kicked 4 | 2 2 Crushed . | . . Highest Temperature 64 | 6 64 Average Temperature 18 | 6 21 Received Heat Transfer 204 | 42 162 Siege Activations . | . . Martial Activations . | . . Shielding Activations . | . . Robots Disrupted . | . . Combat Hostiles . | . . Robots Corrupted . | . . Combat Hostiles . | . . Parts Fried . | . . Impact Corruptions . | . . Robots Melted . | . . Combat Hostiles . | . . Parts Melted . | . . Heat Transferred . | . . Parts Sabotaged . | . . Parts Stolen . | . . Parts Stripped . | . . Power Chain Reactions . | . . Alert | -11 -10 ------- Run | Yrd Mat Maximum Alert Level . | . . Low Security (%) 100 | 100 100 Level 1 . | . . Level 2 . | . . Level 3 . | . . Level 4 . | . . Level 5 . | . . High Security . | . . Max Security . | . . Peak Influence 117 | 20 117 Initial 6 | . 6 Average 28 | 2 35 Influence Increases 248 | 25 223 Destroy 0b10 Robot/C 140 | 20 120 Destroy 0b10 Robot/NC 40 | 5 35 Destroy Leader 14 | . 14 Disable Machine 15 | . 15 Destroy Structure 39 | . 39 Influence Decreases 192 | 15 177 Entered New Map 4 | . 4 Time Decay 178 | 15 163 Lost Part 10 | . 10 Squads Dispatched . | . . Investigation . | . . Extermination . | . . Reinforcement . | . . Assault . | . . Garrison . | . . Intercept . | . . Searches Triggered . | . . Construction Impeded . | . . Haulers Reinforced . | . . Active Scanning Responses . | . . Cargo Convoy Interrupts . | . . Stealth | -11 -10 --------- Run | Yrd Mat Distress Signals 1 | . 1 Communications Jammed . | . . Distress Signals . | . . Times Spotted 10 | 1 9 Peak Tracking Total 4 | 1 4 Tactical Retreats . | . . Traps | -11 -10 ------- Run | Yrd Mat Traps Triggered . | . . Indirectly . | . . Trap Hack Attempts . | . . Triggered . | . . Disarmed . | . . Reprogrammed . | . . Reused . | . . Traps Extracted . | . . Installed . | . . Triggered . | . . Machines | -11 -10 ---------- Run | Yrd Mat Machines Disabled 2 | . 2 Max in Single Turn 1 | . 1 Machines Repaired . | . . Machines Dismantled . | . . Machines Sabotaged . | . . Overloaded Fab Kills . | . . Hacking | -11 -10 --------- Run | Yrd Mat Machines Accessed . | . . Terminals . | . . Fabricators . | . . Repair Stations . | . . Recycling Units . | . . Scanalyzers . | . . Garrison Access . | . . Total Hacks . | . . Successful . | . . Failed . | . . Catastrophic . | . . Database Lockouts . | . . Manual . | . . Terminals . | . . Fabricators . | . . Repair Stations . | . . Recycling Units . | . . Scanalyzers . | . . Garrison Access . | . . Terminal Hacks . | . . Fabricator Hacks . | . . Repair Station Hacks . | . . Recycling Unit Hacks . | . . Scanalyzer . | . . Garrison Access Hacks . | . . Unauthorized Hacks . | . . Terminals . | . . Fabricators . | . . Repair Stations . | . . Recycling Units . | . . Scanalyzers . | . . Garrison Access . | . . Data Cores Recovered . | . . Used . | . . Hacking Detections . | . . Full Trace Events . | . . Feedback Events . | . . Feedback Blocked . | . . Robot Schematics Acquired . | . . Robots Built . | . . Authchips . | . . Time . | . . Total Robot Build Rating . | . . Part Schematics Acquired . | . . Parts Built . | . . Authchips . | . . Time . | . . Total Part Build Rating . | . . Part Studies Acquired . | . . Parts Repaired . | . . Time . | . . Parts Recycled . | . . Recycled Matter . | . . Retrieved Matter . | . . Retrieved Components . | . . Parts Scanalyzed . | . . Part Schematics Acquired . | . . Parts Damaged . | . . Bothacking | -11 -10 ------------ Run | Yrd Mat Used RIF Installer . | . . Robots Hacked . | . . Non-combat . | . . Combat . | . . Robot Hacks Applied . | . . Relay Couplers Released . | . . Fabnet Peak Effective % . | . . Robots Rewired . | . . Allies Hacked . | . . Hacks Repelled . | . . Allies | -11 -10 -------- Run | Yrd Mat Total Allies . | . . Largest Group . | . . Highest-Rated Group . | . . Highest-Rated Ally . | . . Total Orders . | . . Ally Attacks . | . . Total Damage . | . . Kills . | . . Allies Corrupted . | . . Allies Melted . | . . Intel | -11 -10 ------- Run | Yrd Mat Active Infowar (turns) . | . . Robot Analysis Total . | . . Derelict Logs Recovered . | . . Drone Launches . | . . Drone Recoveries . | . . Exploration | -11 -10 ------------- Run | Yrd Mat Turns Passed 739 | 168 571 Spaces Moved 480 | 123 357 Core 23 | 23 . Treads . | . . Legs 398 | 100 298 Wheels 59 | . 59 Hover . | . . Flight . | . . Fastest Speed 50 | 50 100 Average Speed 115 | 106 119 Slowest Speed 400 | 120 400 Overloaded Moves . | . . Propulsion Burnouts . | . . Robots Hopped . | . . Potential Cave-ins . | . . Cave-ins Triggered . | . . Exploration Rate (%) 20 | 7 33 Regions Visited 1 Branch Regions . Pre-discovered Areas . | . . Known Exits Taken . | . . Unknown Exits Taken 1 | 1 . Scrap Searched . | . . Spaces Dug . | . . Terrain Destroyed 39 | . 39 Melee . | . . Projectile . | . . AOE 39 | . 39 Terrain Rammed . | . . Walls Destroyed . | . . Machines Disabled . | . . Actions | -11 -10 --------- Run | Yrd Mat Total 598 | 147 451 Wait 7 | 2 5 Move 479 | 122 357 Hop . | . . Pick Up 16 | 8 8 Fast Attach 3 | 1 2 Attach 7 | 5 2 Detach 1 | . 1 Swap 7 | . 7 Drop 9 | . 9 Fire 64 | 7 57 Melee . | . . Ram 1 | . 1 Kick 4 | 2 2 Crush . | . . Escape Stasis . | . . Rewire . | . . Trap . | . . Miscellaneous . | . . Route ------- -11/Scrapyard -10/Materials (discovered 1 exit: [*Min]) History --------- Turn | Location | Event 2 | -11/Scrapyard | Met Revision 17 121 | -11/Scrapyard | Discovered new exit (range 8) 169 | -11/Scrapyard | Entered Materials 315 | -10/Materials | Build established: Mutant 460 | -10/Materials | Core integrity fell below 50% 671 | -10/Materials | Discovered new exit (range 12) 721 | -10/Materials | Core integrity fell below 20% 740 | -10/Materials | Destroyed by G-47 Trooper with Particle Gun Last Messages --------------- Acquired Com. Wheel. Acquired 58 matter. Acquired 65 matter. Dropped Aluminum Leg. K-01 Serf cleans the Nuclear Reactor. EXIT=FOUND K-01 Serf cleans the Nuclear Reactor. W-16 Scout sends out distress signal. K-01 Serf cleans the Nuclear Reactor. T-07 Excavator destroyed. Machine disabled. W-16 Scout destroyed. K-01 Serf collects debris. K-01 Serf destroyed. K-01 Serf cleans the Atomic Centrifuge. Slammed into K-01 Serf. K-01 Serf cleans the Atomic Centrifuge. G-34 Mercenary destroyed. Com. Wheel destroyed. [Achievement: First Step to Greatness] Map ----- +----------------------------------------------------+ | ?????????????????????????????????????????????????? | | ?????????????????????????????????????????????????? | | ?????????????????????????????????????????????????? | | ?????????????????????????????????????????????????? | | ?????????????????????????????????????????????????? | | ?????????????????????????????????????????????????? | | ?????????????????????????????????????????????????? | | ?????????????????????????????????????????????????? | | ?????????????????????????????????????????????????? | | ?????????????????????????????????????????????????? | | ?????????????????????????????????????????????????? | | ?????????????????????????????????????????????????? | | ?????????????????????????????????????????????????? | | ?????????????????????????????????????????????????? | | ?????????????????????????????????????????????????? | | ????????????????????????????????? ??????????????? | | ????????????????????????????????? ??????????????? | | ????????????????????????????????? """ ????????## | | ??????????????????????????????### """ ???????? | | ??????????????????????????????# ???????? | | ??????????????????????????????# ????????? | | ?????????????????????????????# ??????????+# | | ?????????????????############# ! ##??????????? | | ?????????????????# #" = #??????????? | | ?????????????????# # | ##?????????? | | ?????????????????# @ #? < #?????????? | | ?????????????????# #?! #??????????? | | ?????????????????# #?? #???????????? | | ?????????????????# g #??" #???????????? | | ?????????????????####### ###??# #????????????? | | ??????????????????????# % ##### #############? | | ??????????????????????# !! # #? | | ??????????????????????# !! # #? | | ??????????????????????# """ # #? | | ??????????????????????# """ # #? | | ??????????????????????# """ # #? | | ??????????????????? + !#? | | ??????????????????? # #? | | ??????????????????? """ """ #########+###? | | ??????????????????+## """ """ #?????# ### | | ????????????????????# """ """ #?????# ! | | ????????????????????# #?????# = | | ????????????????????# #?????# ##+ | | ????????????????????# """ """ #?######+### | | ????????????????????# """ """ ## """"" # | | ?????????????????????? ??" """ ## """"" # | | ???????????????????????????? ?? ## """"" # | | ????????????????????????????????? ## # | | ????????????????????????????????? ## # | | ????????????????????????????????? ?# ### | +----------------------------------------------------+ Best States ------------- Heat Dissipation 25 Energy Generation 10 Energy Capacity 275 Matter Stores 400 Matter Capacity 400 Sight Range 16 Terrain Scan Density 10 Weapon Shielding 33 Evasion (%) 55 Item Schematics ----------------- None Robot Schematics ------------------ None Fabricated ------------ Nothing Repaired ---------- Nothing Studied --------- None Alien Tech Used ----------------- None Achievements -------------- First Step to Greatness For Emergencies Only Hey, That's Mine! Organ Harvest Challenges ------------ None Game ------ Seed CloakingDrainedClaymores Manual? 0 Play Time 00:30:10 Cumulative 0.4 hours Start 2026.07.03 @ 22:19:39 End 2026.07.03 @ 22:51:32 Sessions 2 Manual Loads 0 Difficulty Rogue Special Mode None Game No. 1 Rogue 1 Adventurer 0 Explorer 0 Win Type - Total 0 Types 0/0/0/0/0/0/0/0/0/0 Lore% 0 Gallery% 0 Achievement% 0 Wizard Run 0 Options --------- Layout 0 ASCII 0 Keyboard 0 Movement Arrows Keybinds 0 Fullscreen 1 Font 18/SmallcapsGlow Map View 76x50 Zoom Use 0% Tactical HUD 0 Map Filters NONE Filters NONE Steam 1 RUN: 0599218d-b069-450f-9540-cb51f15497fe